Cogmind - Beta 16 @@@ ROGUE MODE // 2025.11.25 @ 13:30:25 Player: Red Box Result: Destroyed by UT-WPZ(R) with Subdweller Machine Gun Performance ------------- Evolutions (0) 0 Regions Visited (3) 600 Robots Destroyed (37) 185 Value Destroyed (764) 764 Prototype IDs (14) 280 Alien Tech Used (0) 0 Bonus (-81) -81 TOTAL SCORE: 1748 Bonus ------- Follower Combat Kills 37 Friendly Fire -118 Cogmind --------- Core Integrity 0/250 Matter 294/300 Energy 250/250 System Corruption 2% Temperature Cool (0) Movement Rolling (115) Ox1 Location -10/Subcaves Parts ------- > --- POWER (1) -------- Ion Engine > --- PROPULSION (2) --- Light Treads Compact Wheel > --- UTILITY (2) ------ Large Storage Unit Targeting Computer > --- WEAPON (2) ------- Light Cannon Light Cannon > --- INVENTORY (15) --- Light Treads Flightbrick Improved Heat Sink High-capacity Matter Pod (200) Recoil Stabilizer Hardlight Generator Field Laser Pulse Rifle Ion Cannon Assault Cannon Grenade Launcher Ripper Peak State ------------ > --- POWER ------------ Ion Engine > --- PROPULSION ------- Light Treads Compact Wheel > --- UTILITY ---------- Large Storage Unit Targeting Computer > --- WEAPON ----------- Light Cannon Ripper > --- INVENTORY -------- Light Treads Flightbrick High-capacity Matter Pod Recoil Stabilizer Hardlight Generator Field Laser Pulse Rifle Ion Cannon Light Cannon Assault Cannon Grenade Launcher [Rating: 15] Favorites ----------- Power Ion Engine Engine Ion Engine Propulsion Aluminum Leg Treads Light Treads Leg Aluminum Leg Wheel Compact Wheel Utility Large Storage Unit Device Heat Sink Storage Large Storage Unit Processor Targeting Computer Protection Medium Armor Plating Weapon Light Cannon Energy Gun EM Pulse Gun Ballistic Gun Light Assault Rifle Ballistic Cannon Light Cannon Special Weapon Mining Laser Slashing Weapon Ripper Build | -11 -10 -10 -10 ------- Run | Yrd Mat Min Sub Slots Evolved . | . . . . Power . | . . . . Propulsion . | . . . . Utility . | . . . . Weapon . | . . . . Parts Attached 25 | 8 9 4 4 Power 2 | 1 1 . . Engine 2 | 1 1 . . Core . | . . . . Reactor . | . . . . Propulsion 6 | 2 1 1 2 Treads 1 | . . . 1 Leg 4 | 2 1 1 . Wheel 1 | . . . 1 Hover . | . . . . Flight . | . . . . Utility 7 | 3 2 2 . Device 3 | 2 1 . . Storage 2 | 1 . 1 . Processor 1 | . . 1 . Hackware . | . . . . Protection 1 | . 1 . . Artifact . | . . . . Weapon 10 | 2 5 1 2 Energy Gun 3 | 1 2 . . Energy Cannon . | . . . . Ballistic Gun 1 | 1 . . . Ballistic Cannon 4 | . 2 1 1 Launcher . | . . . . Special Weapon 1 | . 1 . . Impact Weapon . | . . . . Slashing Weapon 1 | . . . 1 Piercing Weapon . | . . . . Special Melee Weapon . | . . . . Unidentified Prototypes . | . . . . Parts Lost 3 | . 3 . . Power . | . . . . Propulsion . | . . . . Utility 2 | . 2 . . Weapon 1 | . 1 . . Highest Loss Streak 1 | . 1 . . To Critical Strikes . | . . . . Average Backups 10 | 4 7 13 13 Power . | . . . . Propulsion 4 | 3 4 4 3 Utility 1 | . . 2 3 Weapon 4 | . 2 6 6 Tool/Special . | . . . . Unused Backups 16 | . 2 1 13 Power 1 | . 1 . . Propulsion 5 | . 1 . 4 Utility 4 | . . . 4 Weapon 6 | . . 1 5 Tool/Special . | . . . . Average Slot Usage (%) 98 | . 97 100 99 Engine 14 | . 14 14 14 Treads 1 | . . . 7 Leg 25 | . 28 28 13 Wheel 1 | . . . 7 Device 6 | . 10 4 . Storage 14 | . 14 14 14 Processor 6 | . . 9 14 Energy Gun 5 | . 12 . . Ballistic Cannon 21 | . 12 28 26 Peak Build Rating 15 | 9 9 10 15 Average Rating 9 | 5 7 9 11 On Entrance 6 | . 9 7 10 Avg Prop Armor Cover (%) 11 | . . . 11 Naked Turns . | . . . . Heaviest Build 32 | 13 21 32 31 Greatest Support 20 | 20 20 20 20 Greatest Overweight (x) 1 | . 1 1 1 Average Overweight (x) . | . . . 1 Largest Inventory Capacity 15 | 8 8 15 15 Average Capacity 11 | 7 8 14 15 Most Carried 15 | 7 8 15 15 Average Carried 11 | 4 7 13 14 Final Capacity 15 | 8 8 15 15 Final Carried 15 | 7 8 15 15 Class Distribution -------------------- 100% | Mutant Dominant Class ---------------- Mutant | -10/Materials Mutant | -10/Mines Mutant | -10/Subcaves Resources | -11 -10 -10 -10 ----------- Run | Yrd Mat Min Sub Matter Collected 1107 | 288 180 486 153 Remotely . | . . . . Salvage Created 990 | 166 569 156 99 Parts 62 | 8 34 17 3 Haulers Intercepted 1 | . 1 . . Recyclers Shooed 3 | . 2 1 . Parts Field Recycled . | . . . . Retrieved Matter . | . . . . Parts Self-Destructed 1 | . . . 1 Prevented . | . . . . Parts Restored . | . . . . Kills | -11 -10 -10 -10 ------- Run | Yrd Mat Min Sub Combat Hostiles Destroyed 24 | . 14 9 1 Guns 7 | . 7 . . Cannons 12 | . 5 6 1 AOE 5 | . 2 3 . Classes Destroyed 11 | 2 7 1 1 Worker 1 | . 1 . . Builder 1 | . 1 . . Tunneler 3 | 3 . . . Hauler 1 | . 1 . . Recycler 2 | 1 1 . . Operator 2 | . 1 1 . Watcher 3 | . 3 . . Swarmer 10 | . 5 5 . Grunt 12 | . 9 3 . Sentry 1 | . . . 1 Assembled 1 | . . 1 . Thug 1 | . . . 1 Best Kill Streak 7 | 3 7 3 1 Combat Bots Only 4 | . 4 3 1 Max Kills in Single Turn 4 | 1 4 4 1 Gunslinging . | . . . . Exploded 3 | . 1 3 . Melee . | . . . . Uniques/NPCs Destroyed . | . . . . Combat | -11 -10 -10 -10 -------- Run | Yrd Mat Min Sub Hostile Shots Fired 95 | . 67 18 10 Missed 29 | . 22 5 2 Hits 66 | . 45 13 8 Projectile 66 | . 45 13 8 AOE 1 | . . . 1 Critical Strikes 1 | . . 1 . Part Disruptions 1 | . . 1 . Damage Taken 982 | . 519 249 214 Core 266 | . 67 57 142 Absorbed by Shields . | . . . . Regen/Repaired (Parts) 129 | . 129 . . Core Remaining (%) 100 | 100 . . . Volleys Fired 94 | 8 60 17 9 Largest 2 | 2 2 2 2 Hottest 100 | 60 100 60 60 Shots Fired 182 | 16 112 34 20 Gun 88 | 16 72 . . Cannon 85 | . 31 34 20 Launcher . | . . . . Special 9 | . 9 . . Kinetic 96 | 8 34 34 20 Thermal 20 | 8 12 . . Explosive . | . . . . Electromagnetic 66 | . 66 . . Robot Hit Streak 9 | 3 9 6 8 Robot Miss Streak 10 | 1 10 3 1 Penetration Max . | . . . . Secondary Targets . | . . . . Shots Hit Robots 102 | 9 59 19 15 Core Hits 49 | 6 29 10 4 Critical Kills . | . . . . Critical Parts Destroyed . | . . . . Critical Strikes 3 | . 1 1 1 Blast 3 | . 1 1 1 Melee Attacks 3 | . . . 3 Impact . | . . . . Slashing 3 | . . . 3 Piercing . | . . . . Sneak Attacks . | . . . . Combat Hostiles . | . . . . Follow-up Attacks . | . . . . Damage Inflicted 2483 | 92 1611 600 180 Guns 734 | 92 642 . . Cannons 782 | . 235 367 180 Explosions 943 | . 710 233 . Melee . | . . . . Ramming . | . . . . Kinetic 844 | 40 257 367 180 Thermal 1029 | 52 744 233 . Explosive . | . . . . Electromagnetic 610 | . 610 . . Impact . | . . . . Slashing . | . . . . Piercing . | . . . . Highest Corruption 2 | . 2 2 2 Average Corruption 2 | . 2 2 2 Corruption Purged . | . . . . Corruption Blocked . | . . . . Effects 36 | . 13 15 8 Message Errors 11 | . 4 5 2 Matter Fused 6 | . 3 1 2 Heat Flow Errors 2 | . . 2 . Energy Discharges 4 | . 1 3 . Parts Rejected 1 | . 1 . . Data Loss (minor) 3 | . 1 1 1 Data Loss (major) 3 | . 1 2 . Misfires 3 | . 1 . 2 Alerts 3 | . 1 1 1 Overload Shots . | . . . . Overflow Damage 97 | . 80 17 . Projectiles . | . . . . Explosions 97 | . 80 17 . Melee . | . . . . Knockbacks 9 | . 3 6 . Impact . | . . . . Kinetic 8 | . 3 5 . Secondary 1 | . . 1 . Self-Inflicted Damage 135 | . 76 59 . Shots 3 | . 1 2 . Rammed . | . . . . Targets Rammed . | . . . . Kicked . | . . . . Crushed . | . . . . Highest Temperature 178 | 20 178 129 . Average Temperature 52 | 12 55 60 . Received Heat Transfer 195 | . 135 48 12 Siege Activations . | . . . . Martial Activations . | . . . . Shielding Activations . | . . . . Robots Disrupted . | . . . . Combat Hostiles . | . . . . Robots Corrupted . | . . . . Combat Hostiles . | . . . . Parts Fried 1 | . 1 . . Impact Corruptions . | . . . . Robots Melted . | . . . . Combat Hostiles . | . . . . Parts Melted 1 | . . 1 . Heat Transferred 1100 | 125 725 250 . Parts Sabotaged . | . . . . Parts Stolen . | . . . . Parts Stripped . | . . . . Power Chain Reactions 3 | . 3 . . Alert | -11 -10 -10 -10 ------- Run | Yrd Mat Min Sub Maximum Alert Level 1 | . 1 1 . Low Security (%) 68 | 100 54 81 . Level 1 31 | . 45 18 . Level 2 . | . . . . Level 3 . | . . . . Level 4 . | . . . . Level 5 . | . . . . High Security . | . . . . Max Security . | . . . . Peak Influence 270 | 10 270 262 . Initial 83 | . 3 83 . Average 112 | 2 140 90 . Influence Increases 984 | 20 666 273 25 Destroy 0b10 Robot/C 480 | . 280 180 20 Destroy 0b10 Robot/NC 60 | 20 40 . . Destroy Leader 108 | . 78 30 . Allied During Kill 9 | . . 4 5 Successful Hack 25 | . 25 . . Select Force Hacks 60 | . 60 . . Disable Machine 120 | . 75 45 . Destroy Structure 62 | . 48 14 . Lose Combat Pursuer 60 | . 60 . . Influence Decreases 984 | 15 456 488 25 Entered New Map 134 | . 2 132 . Time Decay 811 | 15 424 356 16 Lost Part 30 | . 30 . . Lost Ally 9 | . . . 9 Squads Dispatched 6 | . 6 . . Investigation 4 | . 4 . . Extermination . | . . . . Reinforcement 2 | . 2 . . Assault . | . . . . Garrison . | . . . . Intercept . | . . . . Searches Triggered . | . . . . Construction Impeded . | . . . . Haulers Reinforced . | . . . . Active Scanning Responses . | . . . . Cargo Convoy Interrupts . | . . . . Stealth | -11 -10 -10 -10 --------- Run | Yrd Mat Min Sub Distress Signals 3 | . 3 . . Communications Jammed . | . . . . Distress Signals . | . . . . Times Spotted 40 | . 28 7 5 Peak Tracking Total 5 | . 5 3 2 Tactical Retreats 3 | . 3 . . Traps | -11 -10 -10 -10 ------- Run | Yrd Mat Min Sub Traps Triggered 1 | . 1 . . Indirectly . | . . . . Trap Hack Attempts . | . . . . Triggered . | . . . . Disarmed . | . . . . Reprogrammed . | . . . . Reused . | . . . . Traps Extracted . | . . . . Installed . | . . . . Triggered . | . . . . Machines | -11 -10 -10 -10 ---------- Run | Yrd Mat Min Sub Machines Disabled 9 | . 5 3 1 Max in Single Turn 3 | . 2 3 1 Machines Repaired . | . . . . Machines Dismantled . | . . . . Machines Sabotaged . | . . . . Overloaded Fab Kills . | . . . . Hacking | -11 -10 -10 -10 --------- Run | Yrd Mat Min Sub Machines Accessed 11 | . 9 1 1 Terminals 6 | . 6 . . Fabricators . | . . . . Repair Stations 1 | . 1 . . Recycling Units 2 | . 2 . . Scanalyzers . | . . . . Garrison Access . | . . . . Total Hacks 43 | . 41 1 1 Successful 27 | . 25 1 1 Failed 16 | . 16 . . Catastrophic . | . . . . Database Lockouts . | . . . . Manual 28 | . 28 . . Terminals 26 | . 26 . . Fabricators . | . . . . Repair Stations 7 | . 7 . . Recycling Units 8 | . 8 . . Scanalyzers . | . . . . Garrison Access . | . . . . Terminal Hacks 7 | . 5 1 1 Robot Analysis 3 | . 3 . . Prototype ID Bank 1 | . 1 . . Open Door 1 | . . 1 . Terminal Index 1 | . 1 . . Proto ID Catalog 1 | . . . 1 Fabricator Hacks . | . . . . Repair Station Hacks 5 | . 5 . . Scan Component 3 | . 3 . . Repair 2 | . 2 . . Recycling Unit Hacks 2 | . 2 . . Retrieve Components 2 | . 2 . . Scanalyzer . | . . . . Garrison Access Hacks . | . . . . Unauthorized Hacks 13 | . 13 . . Terminals 10 | . 10 . . Assimilate 2 | . 2 . . Botnet 2 | . 2 . . Operators 1 | . 1 . . Skim 5 | . 5 . . Fabricators . | . . . . Repair Stations . | . . . . Recycling Units 3 | . 3 . . Mask 1 | . 1 . . Tunnel 2 | . 2 . . Scanalyzers . | . . . . Garrison Access . | . . . . Data Cores Recovered . | . . . . Used . | . . . . Hacking Detections 9 | . 9 . . Full Trace Events 2 | . 2 . . Feedback Events . | . . . . Feedback Blocked . | . . . . Robot Schematics Acquired . | . . . . Robots Built . | . . . . Authchips . | . . . . Time . | . . . . Total Robot Build Rating . | . . . . Part Schematics Acquired . | . . . . Parts Built . | . . . . Authchips . | . . . . Time . | . . . . Total Part Build Rating . | . . . . Part Studies Acquired . | . . . . Parts Repaired 2 | . 2 . . Time 52 | . 52 . . Parts Recycled . | . . . . Recycled Matter . | . . . . Retrieved Matter . | . . . . Retrieved Components 12 | . 12 . . Parts Scanalyzed . | . . . . Part Schematics Acquired . | . . . . Parts Damaged . | . . . . Bothacking | -11 -10 -10 -10 ------------ Run | Yrd Mat Min Sub Used RIF Installer . | . . . . Robots Hacked . | . . . . Non-combat . | . . . . Combat . | . . . . Robot Hacks Applied . | . . . . Relay Couplers Released . | . . . . Fabnet Peak Effective % . | . . . . Robots Rewired . | . . . . Allies Hacked . | . . . . Hacks Repelled . | . . . . Allies | -11 -10 -10 -10 -------- Run | Yrd Mat Min Sub Total Allies 7 | . 1 6 . Largest Group 6 | . 1 6 6 Highest-Rated Group 116 | . 10 116 116 Highest-Rated Ally 31 | . 10 31 31 Total Orders 3 | . 2 1 . STAY 1 | . 1 . . ROAM 1 | . . 1 . FOLLOW 1 | . 1 . . Ally Attacks 19 | . . 10 9 Total Damage 153 | . . 86 67 Kills 2 | . . 1 1 Allies Corrupted . | . . . . Allies Melted . | . . . . Intel | -11 -10 -10 -10 ------- Run | Yrd Mat Min Sub Active Infowar (turns) 506 | 24 482 . . Terrain 506 | 24 482 . . Robot Analysis Total 3 | . 3 . . Derelict Logs Recovered 3 | . . 1 2 Drone Launches . | . . . . Drone Recoveries . | . . . . Exploration | -11 -10 -10 -10 ------------- Run | Yrd Mat Min Sub Turns Passed 3242 | 96 1312 1261 573 Spaces Moved 1806 | 51 766 640 349 Core 9 | 9 . . . Treads 1 | . . . 1 Legs 1570 | 42 766 640 122 Wheels 226 | . . . 226 Hover . | . . . . Flight . | . . . . Fastest Speed 50 | 50 120 120 115 Average Speed 146 | 107 122 181 141 Slowest Speed 240 | 120 190 190 240 Overloaded Moves . | . . . . Propulsion Burnouts . | . . . . Robots Hopped . | . . . . Potential Cave-ins . | . . . . Cave-ins Triggered . | . . . . Exploration Rate (%) 56 | 4 97 99 26 Regions Visited 3 Branch Regions 2 Pre-discovered Areas 3 | . 2 . 1 Known Exits Taken 1 | . . 1 . Unknown Exits Taken 2 | 1 1 . . Scrap Searched 3 | . . 2 1 Spaces Dug 7 | . 7 . . Terrain Destroyed 74 | . 59 15 . Melee . | . . . . Projectile 7 | . 7 . . AOE 67 | . 52 15 . Terrain Rammed . | . . . . Walls Destroyed . | . . . . Machines Disabled . | . . . . Actions | -11 -10 -10 -10 --------- Run | Yrd Mat Min Sub Total 2200 | 74 1007 711 408 Wait 221 | . 152 34 35 Move 1803 | 50 765 639 349 Hop . | . . . . Pick Up 27 | 7 8 10 2 Fast Attach 12 | 7 4 1 . Attach 6 | . 4 . 2 Detach 1 | . 1 . . Swap 14 | 1 7 3 3 Drop 19 | 1 6 7 5 Fire 94 | 8 60 17 9 Melee 3 | . . . 3 Ram . | . . . . Kick . | . . . . Crush . | . . . . Escape Stasis . | . . . . Rewire . | . . . . Trap . | . . . . Miscellaneous . | . . . . Route ------- -11/Scrapyard -10/Materials (discovered 5 exits: *Mat x3 / *Min / Sub) -10/Mines (discovered 4 exits: *Mat x2 / [*Exi] / *Sub) -10/Subcaves (discovered 1 exit: [*Scr]) History --------- Turn | Location | Event 7 | -11/Scrapyard | Discovered new exit (range 15) 97 | -11/Scrapyard | Entered Materials 242 | -10/Materials | Discovered new exit (range 16) 302 | -10/Materials | Build established: Mutant 770 | -10/Materials | Discovered new exit (range 3) 1101 | -10/Materials | Discovered new exit (range 12) 1198 | -10/Materials | Discovered new exit (range 16) 1210 | -10/Materials | Identified exit to Subcaves 1277 | -10/Materials | Learned location of 2 exits from Mines 1281 | -10/Materials | Repaired Lgt. Cannon 1308 | -10/Materials | Repaired Lgt. Cannon 1377 | -10/Materials | Learned Storage trap positions 1409 | -10/Materials | Entered Mines 1409 | -10/Mines | Accompanied by 1 ally 1410 | -10/Mines | Identified exit to Materials 1429 | -10/Mines | Assembled infested the area 1430 | -10/Mines | A weapon hastily lodged in a ceiling crevice suddenly fell to the ground 1465 | -10/Mines | Escorted by a lone wolf Derelict 1720 | -10/Mines | Met a Derelict who couldn't figure out how to use a Trap Extractor 2011 | -10/Mines | Learned Materials non-interactive machine intel 2470 | -10/Mines | Discovered exit to Materials (range 14) 2556 | -10/Mines | Deemed a non-threat by the Exiles lab entrance 2556 | -10/Mines | Discovered new exit (range 5) 2605 | -10/Mines | Assisted by bots powering up and referring to "LRC-V3" 2670 | -10/Mines | Entered Subcaves 2670 | -10/Subcaves | Accompanied by 6 allies 2671 | -10/Subcaves | Approached by a straggling Scientist 2675 | -10/Subcaves | Led the pair of lost Derelicts to an unsafe place 2933 | -10/Subcaves | Visited 4L-MR0's lab 2955 | -10/Subcaves | Found Flightbrick 3147 | -10/Subcaves | Learned location of 1 exit from Materials 3151 | -10/Subcaves | Learned location of Mines (-9) 3191 | -10/Subcaves | Core integrity fell below 50% 3236 | -10/Subcaves | Core integrity fell below 20% 3243 | -10/Subcaves | Destroyed by UT-WPZ(R) with Subdweller Machine Gun Last Messages --------------- 03123_ D,=G1DOLW6XH P6DYTRFDHIS9C3TM8QS3PYVFD#% V4-6LH(c): "We're getting close, I can feel it." 03147_ Acquired derelict log, extracted data. Data stored: Materials exits (x1). 03151_ Acquired derelict log, extracted data. World map updated: -9/Mines. 03154_ V4-6LH(c) exits level. 03165_ System corrupted: IFF burst signal emitted. 03190_ Q6-AF1(R) destroyed. 03204_ Y-45 Defender suffers critical hit (Burn). 03206_ Y-45 Defender destroyed. 03207_ System corrupted: Matter fused (-10). 03213_ Lgt. Treads fries itself beyond repair. 03213_ Acquired 3 matter. 03214_ Acquired 22 matter. 03215_ Acquired 7 matter. 03219_ Acquired 1 matter. 03239_ Mercenary 1a destroyed. 03242_ ZM-AQD(R) destroyed. 03243_ Acquired 43 matter. Map ----- +----------------------------------------------------+ | ?????????????????????????????????????????????????? | | ?????????????????????????????????????????????????? | | ?????????????????????????????????????????????????? | | ?????????????????????????????????????????????????? | | ?????????????????????????????????????????????????? | | ?????????????????????????????????????????????????? | | ?????????????????????????????????????????????????? | | ?????????????????????????????????????????????????? | | ?????????????????????????????????????????????????? | | ?????????????????????????????????????????????????? | | ?????????????????????????????????????????????????? | | ?????????????????????????????????????????????????? | | ?????????????????????????????????????????????????? | | ?????????????????????????????????????????????????? | | ?????????????????????????????????????????????????? | | ?????????????????????????????????????????????????? | | ?????????????????????????????????????????????????? | | ?????????????????????????????????????????????????? | | ?????????????????????????????????????????????????? | | ?????????????????????????????????????????????????? | | ?????????????????????????????????????????????????? | | ?????????????????????????????????????????????????? | | ####???###????????#######?####???????????????????? | | # ##?## ##???????# ##*##%|!## #??????????????? | | """"### ######### =%g[R"" ""????????????????? | | " # ## # ### #=@###"# "???????????????? | | *= ######??????????????????????? | | "# ## & ## #??????????????????????????? | | """"###### #&!& ######??????????????????????????? | | ###????### % #???????????????????????????????? | | ###????????# #???????????????????????????????? | | ???????????# #???????????????????????????????? | | ???????????#######???????????????????????????????? | | ?????????????????????????????????????????????????? | | ?????????????????????????????????????????????????? | | ?????????????????????????????????????????????????? | | ?????????????????????????????????????????????????? | | ?????????????????????????????????????????????????? | | ?????????????????????????????????????????????????? | | ?????????????????????????????????????????????????? | | ?????????????????????????????????????????????????? | | ?????????????????????????????????????????????????? | | ?????????????????????????????????????????????????? | | ?????????????????????????????????????????????????? | | ?????????????????????????????????????????????????? | | | | | | | | | | | +----------------------------------------------------+ Best States ------------- Heat Dissipation 35 Energy Generation 10 Energy Capacity 250 Matter Stores 300 Matter Capacity 300 Sight Range 16 Terrain Scan Range 16 Terrain Scan Density 10 Armor Coverage 225 Evasion (%) 55 Targeting Accuracy 5 Recoil Reduction 1 Item Schematics ----------------- None Robot Schematics ------------------ None Fabricated ------------ Nothing Repaired ---------- Lgt. Cannon | 43% | -10/Materials Lgt. Cannon | 49% | -10/Materials Studied --------- None Alien Tech Used ----------------- None Achievements -------------- None Challenges ------------ None Game ------ Seed ShadingCompanionFalx Manual? 0 Play Time 00:22:10 Cumulative 725.2 hours Start 2025.11.25 @ 13:06:36 End 2025.11.25 @ 13:30:25 Sessions 1 Manual Loads 0 Difficulty Rogue Special Mode None Game No. 508 Rogue 508 Adventurer 0 Explorer 0 Win Type - Total 1 Types 1/0/0/0/0/0/0/0/0/0 Lore% 71 Gallery% 67 Achievement% 46 Wizard Run 0 Options --------- Layout 1 ASCII 0 Keyboard 0 Movement Mouse Keybinds 0 Fullscreen 1 Font 20/SmallcapsGlow Map View 54x42 Zoom Use 0% Tactical HUD 1 Map Filters NONE Filters NONE Steam 1 RUN: 366c3c86-e53d-468d-a128-dd9583b2bebc